Workbook

Sheet Bombeiro hid
A1: ANEXO D
A3: PLANILHAS DE PROPOSTA DE PREÇO
A4: Planilha de Proposta de Preço
A5: Processo nº:
A6: Licitação nº____________ Pregão Eletrônico nº ____/2013
A7: Dia _______/_____________/____________ às _____:_____ horas
A8: Data da apresentação da proposta ___/___/2013
A9: Município/UF: Brasília/ DF
A10: Ano Acordo, Convenção Coletiva ou Sentença Normativa em Dissídio Coletivo. 2013
A11: Nº de meses de execução contratual: 12 meses
A12: Item | B12: Posto | C12: Custo Estimado por posto | D12: Quantidade de postos | E12: Valor mensal | F12: Valor anual
A13: 1 | B13: Bombeiro hidráulico | C13: =E166 -> 3573.447343 | D13: 1 | E13: =C176 -> 3573.447343 | F13: =C177 -> 42881.36812
A14: Total Item 1
A16: E | B16: RESPONSÁVEL PELO PROJETO
B17: Unidade de Serviços Auxiliares.
A19: PLANILHA DE COMPOSIÇÃO DE CUSTOS E FORMAÇÃO DE PREÇOS
A21: MÃO-DE-OBRA VINCULADA À EXECUÇÃO CONTRATUAL
A23: Planilha de Proposta de Preço
B24: Processo nº:
B25: Licitação nº__________ Pregão Eletrônico nº ____/2013
A26: Dia _______/_____________/____________ às _____:_____ horas
A28: A | B28: Data da apresentação da proposta | C28: ___/___/2013
A29: B | B29: Município/UF | C29: Brasília/ DF
A30: C | B30: Ano Acordo, Convenção Coletiva ou Sentença Normativa em Dissídio Coletivo. | C30: 2013
A31: D | B31: Nº de meses de execução contratual | C31: 12 meses
A33: Mão-de-obra vinculada à execução contratual
A34: Dados complementares para composição dos custos referente à mão-de-obra
A35: 1 | B35: Tipo de serviço | C35: Bombeiro hidráulico
A36: 2 | B36: Salário normativo da categoria profissional | C36: 1151.58
A37: 3 | B37: Categoria profissional | C37: Bombeiro hidráulico
A38: 4 | B38: Data base da categoria | C38: 1º de janeiro 2013
A39: Módulo 1: Composição da Remuneração
A41: 1 | B41: Composição da Remuneração | D41: Valor (R$)
A42: A | B42: Salário Base | D42: 1151.58
A43: B | B43: Adicional de periculosidade | C43: 0 | D43: 0
A44: C | B44: Adicional de insalubridade | C44: 0 | D44: 0
A45: D | B45: Intervalo intrajornada | C45: 0 | D45: 0
A46: E | B46: Outros | C46: 0 | D46: 0
A47: Total da Remuneração | D47: =SUM(D42:D46) -> 1151.58
A49: Módulo 2: Benefícios Mensais e diários
A51: 2 | B51: Benefícios Mensais e Diários | D51: Valor (R$)
A52: A | B52: Transporte (R$ 5,00 x 2 vales x 22 dias) - (R$ 1151,58 x 6%) | D52: =(22*5*2)-(D47*0.06) -> 150.9052
A53: C | B53: Auxílio alimentação (R$ 18,00 x 22 dias) | D53: =18*22 -> 396
A54: D | B54: Assistência médica e odontológica * (CCT 2013) | D54: 4
A55: E | B55: Auxílio creche | C55: 0 | D55: 0
A56: F | B56: Seguro de vida* | C56: 0 | D56: 0
A57: G | B57: Auxílio invalidez* | C57: 0 | D57: 0
A58: H | B58: Auxílio funeral | D58: 0
A59: I | B59: Outros | D59: 0
A60: Total de benefícios mensais e diários | D60: =SUM(D52:D59) -> 550.9052
A62: Módulo 3: Insumos Diversos
A64: 3 | B64: Insumos diversos | D64: Valor (R$)
A65: A | B65: Uniformes | D65: 37.64
A66: B | B66: Materiais | D66: 0
A67: C | B67: Equipamentos | D67: 0
A68: D | B68: Outros | D68: 0
A69: Total de Insumos Diversos | D69: =SUM(D65:D68) -> 37.64
A71: Módulo 4: Encargos Sociais e Trabalhistas
A73: Submódulo 4.1 – Encargos previdenciários e FGTS
A74: 4.1 | B74: Encargos previdenciários e FGTS | C74: % | D74: Valor (R$)
A75: A | B75: INSS | C75: 0.2 | D75: =D47*0.2 -> 230.316
A76: B | B76: SESI OU SESC | C76: 0.015 | D76: =D47*0.015 -> 17.2737
A77: C | B77: SENAI OU SENAC | C77: 0.01 | D77: =D47*0.01 -> 11.5158
A78: D | B78: INCRA | C78: 0.002 | D78: =D47*0.002 -> 2.30316
A79: E | B79: Salário Educação | C79: 0.025 | D79: =D47*0.025 -> 28.7895
A80: F | B80: FGTS | C80: 0.08 | D80: =D47*0.08 -> 92.1264
A81: G | B81: Seguro Acidente de Trabalho (decreto 6042/2007) | C81: 0.03 | D81: =D47*0.03 -> 34.5474
A82: H | B82: SEBRAE | C82: 0.006 | D82: =D47*0.006 -> 6.90948
A83: Total | C83: =SUM(C75:C82) -> 0.368 | D83: =SUM(D75:D82) -> 423.78144
A85: Submódulo 4.2 – 13º salário e Adicional de Férias
A87: 4.2 | B87: 13º Salário e Adicional de Férias | D87: Valor (R$)
A88: A | B88: 13º Salário - Manual MPOG | C88: =5/56 -> 0.08928571429 | D88: =C88*D47 -> 102.8196429
A89: B | B89: Adicional de Férias Manual MPOG | C89: =1/3*(5/56) -> 0.02976190476 | D89: =D47*C89 -> 34.27321429
B90: Subtotal | C90: =SUM(C88:C89) -> 0.119047619 | D90: =SUM(D88:D89) -> 137.0928571
A91: C | B91: Incidência do Submódulo 4.1 sobre 13º salário e adicional de férias | C91: =C83*C90 -> 0.04380952381 | D91: =D90*C91 -> 6.005972789
A92: Total | C92: =SUM(C90:C91) -> 0.1628571429 | D92: =SUM(D88:D91) -> 280.1916871
A96: Submódulo 4.3 – Afastamento Maternidade
A98: 4.3 | B98: Afastamento Maternidade | D98: Valor (R$)
A99: A | B99: Afastamento Maternidade (CCT 2013) | C99: 0 | D99: =D47*C99 -> 0
A100: B | B100: Incidência do submódulo 4.1 sobre afastamento maternidade | C100: =C83*C99 -> 0 | D100: =D99*C100 -> 0
A101: Total | C101: =SUM(C99:C100) -> 0 | D101: =SUM(D99:D100) -> 0
A103: Submódulo 4.4 – Provisão para Rescisão
A105: 4.4 | B105: Provisão para Rescisão | D105: Valor (R$)
A106: A | B106: Aviso prévio Indenizado (Portaria nº 7 da IN nº2/2008) | C106: =1/12*(0.05) -> 0.004166666667 | D106: =D47*C106 -> 4.79825
A107: B | B107: Incidência do FGTS sobre aviso prévio indenizado (provisão para rescisão) | C107: =C80*C106 -> 0.0003333333333 | D107: =D47*C107 -> 0.38386
A108: C | B108: Multa do FGTS do aviso prévio indenizado (Manual MPOG) | C108: =0.08*0.5*0.9*(1+5/56+5/56+((1/3)*(5/56))) -> 0.0435 | D108: =D47*C108 -> 50.09373
A109: D | B109: Aviso prévio trabalhado Manual MPOG | C109: =((7/30)/12)*0.02 -> 0.0003888888889 | D109: =D47*C109 -> 0.4478366667
A110: E | B110: Incidência do submódulo 4.1 sobre aviso prévio trabalhado | C110: =C83*C109 -> 0.0001431111111 | D110: =D109*C110 -> 6.409040296e-05
A111: F | B111: Multa FGTS do aviso prévio trabalhado | C111: =(0.4+0.1)*0.08 -> 0.04 | D111: =D47*C111 -> 46.0632
A112: Total | C112: =SUM(C106:C111) -> 0.088532 | D112: =SUM(D106:D111) -> 101.7869408
A114: Submódulo 4.5 – Custo de Reposição do Profissional Ausente
A116: 4.5 | B116: Composição do custo de Reposição do Profissional Ausente | D116: Valor (R$)
A117: A | B117: Férias (Portaria nº 7 da IN nº2/2008) | C117: =5/56 -> 0.08928571429 | D117: =D47*C117 -> 102.8196429
A118: B | B118: Ausência por doença (Portaria nº 7 da IN nº2/2008) | C118: =(5.96/30)/12 -> 0.01655555556 | D118: =D47*C118 -> 19.06504667
A119: C | B119: Licença paternidade (Portaria nº 7 da IN nº2/2008) | C119: =((5/30)/12)*0.015 -> 0.0002083333333 | D119: =D47*C119 -> 0.2399125
A120: D | B120: Ausências legais | C120: =(2.96/30)*(1/12) -> 0.008222222222 | D120: =D47*C120 -> 9.468546667
A121: E | B121: Ausência por acidente de trabalho | C121: =((15/30)/12)*0.0078 -> 0.000325 | D121: =D47*C121 -> 0.3742635
A122: F | B122: Outros | C122: 0 | D122: =SUM(D117:D121) -> 131.9674122
A123: Subtotal | C123: =SUM(C117:C122) -> 0.1145968254 | D123: =SUM(D117:D122) -> 263.9348244
A124: G | B124: Incidência do submódulo 4.1 sobre o Custo de reposição | C124: =C83*C123 -> 0.04217163175 | D124: =D123*C124 -> 11.13056222
A125: Total | C125: =SUM(C123:C124) -> 0.1567684571 | D125: =SUM(D123:D124) -> 275.0653866
A127: Quadro – resumo – Módulo 4 – Encargos sociais e trabalhistas
A129: 4 | B129: Encargos Sociais e Trabalhistas | D129: Valor (R$)
A130: 4.1 | B130: 13º salário+Adicional de Férias | D130: =D92 -> 280.1916871
A131: 4.2 | B131: Encargos Previdenciários e FGTS | D131: =D83 -> 423.78144
A132: 4.3 | B132: Afastamento Maternidade | D132: =D101 -> 0
A133: 4.4 | B133: Custo de Rescisão | D133: =D112 -> 101.7869408
A134: 4.5 | B134: Custo de Reposição do Profissional Ausente | D134: =D125 -> 275.0653866
A135: 4.6 | B135: Outros | D135: 0
A136: Total | D136: =SUM(D130:D135) -> 1080.825454
A138: Módulo 5: Custos indiretos, tributos e lucro
A140: 5 | B140: Custos Indiretos, Tributos e Lucro | C140: % | D140: Valor (R$)
A141: A | B141: Custos Indiretos (Portaria nº 7 da IN nº2/2008) | C141: 0.03 | D141: =D159*C141 -> 84.62851963
A142: B | B142: Tributos
B143: B.1 Tributos Federais
B144: B.1.1 PIS (depende do regime de tributação) | C144: 0.0165 | D144: =((D159+D141+D149)*C144)/(1-C144) -> 52.05625013
B145: B.1.2 COFINS (depende do regime de tributação) | C145: 0.076 | D145: =((D159+D141+D149)*C145)/(1-C145) -> 255.2142511
B146: B.2 Tributos Estaduais (ISS) | C146: 0.05 | D146: =((D159+D141+D149)*C146)/(1-C146) -> 163.3088421
B147: B.3 Tributos Municipais | D147: 0
B148: B.4 Outros Tributos | D148: 0
A149: C | B149: Lucro | C149: 0.0679 | D149: =(D159+D141)*C149 -> 197.2888259
A150: Total | D150: =SUM(D141:D149) -> 752.4966889
A152: Anexo III –B – Quadro-resumo do custo por empregado
A154: Mão-de-obra vinculada à execução contratual (valor por empregado) | D154: Valor (R$)
A155: A | B155: Módulo 1- Composição da Remuneração | D155: =D47 -> 1151.58
A156: B | B156: Módulo 2- Benefícios Mensais e Diários | D156: =D60 -> 550.9052
A157: C | B157: Módulo 3- Insumos Diversos (uniformes, materiais, equipamentos e outros) | D157: =D69 -> 37.64
A158: D | B158: Módulo 4- Encargos Sociais e Trabalhistas | D158: =D136 -> 1080.825454
A159: Subtotal (A+B+C+D) | D159: =SUM(D155:D158) -> 2820.950654
A160: E | B160: Módulo 5 – Custos indiretos, tributos e lucro | D160: =D150 -> 752.4966889
A161: Valor total por empregado | D161: =SUM(D159:D160) -> 3573.447343
A162: Anexo III –C – Quadro-resumo – Valor Mensal dos Serviços
A164: Tipo de serviço | C164: Valor proposto por empregado (B) | D164: Qtde de empregados por posto | E164: Valor proposto por posto | F164: Qtde e postos | G164: Valor total dos serviços
A165: (A) | D165: (C) | E165: (D)=(BXC) | F165: (E) | G165: (F)=(DxE)
A166: I | B166: Serviço 1 | C166: =D161 -> 3573.447343 | D166: 1 | E166: =C166*D166 -> 3573.447343 | F166: 1 | G166: =E166*F166 -> 3573.447343
A167: II | B167: Serviço 2 (indicar) | C167: R$ | E167: R$ | G167: R$
A169: Valor mensal dos serviços (I+II) | G169: =SUM(G166:G168) -> 3573.447343
A171: Anexo III –D – Quadro-demonstrativo – Valor Global da proposta
A173: Valor global da proposta
B174: Descrição | C174: Valor (R$)
A175: A | B175: Valor proposto por unidade de medida | C175: =E166 -> 3573.447343
A176: B | B176: Valor mensal do serviço | C176: =E166 -> 3573.447343
A177: C | B177: Valor global da proposta (valor mensal do serviço x nº meses do contrato) | C177: =C176*12 -> 42881.36812

Sheet Marceneiro
A1: ANEXO E
A3: PLANILHAS DE PROPOSTA DE PREÇO
A4: Planilha de Proposta de Preço
A5: Processo nº:
A6: Licitação nº____________ Pregão Eletrônico nº ____/2013
A7: Dia _______/_____________/____________ às _____:_____ horas
A8: Data da apresentação da proposta ___/___/2013
A9: Município/UF: Brasília/ DF
A10: Ano Acordo, Convenção Coletiva ou Sentença Normativa em Dissídio Coletivo. 2013
A11: Nº de meses de execução contratual: 12 meses
A12: Item | B12: Posto | C12: Custo Estimado por posto | D12: Quantidade de postos | E12: Valor mensal | F12: Valor anual
A13: 1 | B13: Marceneiro | C13: =E164 -> 3573.447343 | D13: 1 | E13: =C174 -> 3573.447343 | F13: =C175 -> 42881.36812
A14: Total Item 1
A16: E | B16: RESPONSÁVEL PELO PROJETO
B17: Unidade de Serviços Auxiliares.
A19: PLANILHA DE COMPOSIÇÃO DE CUSTOS E FORMAÇÃO DE PREÇOS
A21: MÃO-DE-OBRA VINCULADA À EXECUÇÃO CONTRATUAL
A23: Planilha de Proposta de Preço
B24: Processo nº:
B25: Licitação nº__________ Pregão Eletrônico nº ____/2013
A26: Dia _______/_____________/____________ às _____:_____ horas
A28: A | B28: Data da apresentação da proposta | C28: ___/___/2013
A29: B | B29: Município/UF | C29: Brasília/ DF
A30: C | B30: Ano Acordo, Convenção Coletiva ou Sentença Normativa em Dissídio Coletivo. | C30: 2013
A31: D | B31: Nº de meses de execução contratual | C31: 12 meses
A32: Mão-de-obra vinculada à execução contratual
A33: Dados complementares para composição dos custos referente à mão-de-obra
A34: 1 | B34: Tipo de serviço | C34: Marceneiro
A35: 2 | B35: Salário normativo da categoria profissional | C35: 1151.58
A36: 3 | B36: Categoria profissional | C36: Marceneiro
A37: 4 | B37: Data base da categoria | C37: 1º de janeiro 2013
A38: Módulo 1: Composição da Remuneração
A40: 1 | B40: Composição da Remuneração | D40: Valor (R$)
A41: A | B41: Salário Base | D41: 1151.58
A42: B | B42: Adicional de periculosidade | C42: 0 | D42: 0
A43: C | B43: Adicional de insalubridade | C43: 0 | D43: 0
A44: D | B44: Intervalo intrajornada | C44: 0 | D44: 0
A45: E | B45: Outros | C45: 0 | D45: 0
A46: Total da Remuneração | D46: =SUM(D41:D45) -> 1151.58
A48: Módulo 2: Benefícios Mensais e diários
A50: 2 | B50: Benefícios Mensais e Diários | D50: Valor (R$)
A51: A | B51: Transporte (R$ 5,00 x 2 vales x 22 dias) - (R$ 1151,58 x 6%) | D51: =(22*5*2)-(D46*0.06) -> 150.9052
A52: C | B52: Auxílio alimentação (R$ 18,00 x 22 dias) | D52: =18*22 -> 396
A53: D | B53: Assistência médica e odontológica * (CCT 2013) | D53: 4
A54: E | B54: Auxílio creche | C54: 0 | D54: 0
A55: F | B55: Seguro de vida* | C55: 0 | D55: 0
A56: G | B56: Auxílio invalidez* | C56: 0 | D56: 0
A57: H | B57: Auxílio funeral | D57: 0
A58: I | B58: Outros | D58: 0
A59: Total de benefícios mensais e diários | D59: =SUM(D51:D58) -> 550.9052
A60: Módulo 3: Insumos Diversos
A62: 3 | B62: Insumos diversos | D62: Valor (R$)
A63: A | B63: Uniformes | D63: 37.64
A64: B | B64: Materiais | D64: 0
A65: C | B65: Equipamentos | D65: 0
A66: D | B66: Outros | D66: 0
A67: Total de Insumos Diversos | D67: =SUM(D63:D66) -> 37.64
A69: Módulo 4: Encargos Sociais e Trabalhistas
A71: Submódulo 4.1 – Encargos previdenciários e FGTS
A72: 4.1 | B72: Encargos previdenciários e FGTS | C72: % | D72: Valor (R$)
A73: A | B73: INSS | C73: 0.2 | D73: =D46*0.2 -> 230.316
A74: B | B74: SESI OU SESC | C74: 0.015 | D74: =D46*0.015 -> 17.2737
A75: C | B75: SENAI OU SENAC | C75: 0.01 | D75: =D46*0.01 -> 11.5158
A76: D | B76: INCRA | C76: 0.002 | D76: =D46*0.002 -> 2.30316
A77: E | B77: Salário Educação | C77: 0.025 | D77: =D46*0.025 -> 28.7895
A78: F | B78: FGTS | C78: 0.08 | D78: =D46*0.08 -> 92.1264
A79: G | B79: Seguro Acidente de Trabalho (decreto 6042/2007) | C79: 0.03 | D79: =D46*0.03 -> 34.5474
A80: H | B80: SEBRAE | C80: 0.006 | D80: =D46*0.006 -> 6.90948
A81: Total | C81: =SUM(C73:C80) -> 0.368 | D81: =SUM(D73:D80) -> 423.78144
A83: Submódulo 4.2 – 13º salário e Adicional de Férias
A85: 4.2 | B85: 13º Salário e Adicional de Férias | D85: Valor (R$)
A86: A | B86: 13º Salário - Manual MPOG | C86: =5/56 -> 0.08928571429 | D86: =C86*D46 -> 102.8196429
A87: B | B87: Adicional de Férias Manual MPOG | C87: =1/3*(5/56) -> 0.02976190476 | D87: =D46*C87 -> 34.27321429
B88: Subtotal | C88: =SUM(C86:C87) -> 0.119047619 | D88: =SUM(D86:D87) -> 137.0928571
A89: C | B89: Incidência do Submódulo 4.1 sobre 13º salário e adicional de férias | C89: =C81*C88 -> 0.04380952381 | D89: =D88*C89 -> 6.005972789
A90: Total | C90: =SUM(C88:C89) -> 0.1628571429 | D90: =SUM(D86:D89) -> 280.1916871
A93: Submódulo 4.3 – Afastamento Maternidade
A95: 4.3 | B95: Afastamento Maternidade | D95: Valor (R$)
A96: A | B96: Afastamento Maternidade (CCT 2013) | C96: 0 | D96: =D46*C96 -> 0
A97: B | B97: Incidência do submódulo 4.1 sobre afastamento maternidade | C97: =C81*C96 -> 0 | D97: =D96*C97 -> 0
A98: Total | C98: =SUM(C96:C97) -> 0 | D98: =SUM(D96:D97) -> 0
A100: Submódulo 4.4 – Provisão para Rescisão
A102: 4.4 | B102: Provisão para Rescisão | D102: Valor (R$)
A103: A | B103: Aviso prévio Indenizado (Portaria nº 7 da IN nº2/2008) | C103: =1/12*(0.05) -> 0.004166666667 | D103: =D46*C103 -> 4.79825
A104: B | B104: Incidência do FGTS sobre aviso prévio indenizado (provisão para rescisão) | C104: =C78*C103 -> 0.0003333333333 | D104: =D46*C104 -> 0.38386
A105: C | B105: Multa do FGTS do aviso prévio indenizado (Manual MPOG) | C105: =0.08*0.5*0.9*(1+5/56+5/56+((1/3)*(5/56))) -> 0.0435 | D105: =D46*C105 -> 50.09373
A106: D | B106: Aviso prévio trabalhado Manual MPOG | C106: =((7/30)/12)*0.02 -> 0.0003888888889 | D106: =D46*C106 -> 0.4478366667
A107: E | B107: Incidência do submódulo 4.1 sobre aviso prévio trabalhado | C107: =C81*C106 -> 0.0001431111111 | D107: =D106*C107 -> 6.409040296e-05
A108: F | B108: Multa FGTS do aviso prévio trabalhado | C108: =(0.4+0.1)*0.08 -> 0.04 | D108: =D46*C108 -> 46.0632
A109: Total | C109: =SUM(C103:C108) -> 0.088532 | D109: =SUM(D103:D108) -> 101.7869408
A111: Submódulo 4.5 – Custo de Reposição do Profissional Ausente
A113: 4.5 | B113: Composição do custo de Reposição do Profissional Ausente | D113: Valor (R$)
A114: A | B114: Férias (Portaria nº 7 da IN nº2/2008) | C114: =5/56 -> 0.08928571429 | D114: =D46*C114 -> 102.8196429
A115: B | B115: Ausência por doença (Portaria nº 7 da IN nº2/2008) | C115: =(5.96/30)/12 -> 0.01655555556 | D115: =D46*C115 -> 19.06504667
A116: C | B116: Licença paternidade (Portaria nº 7 da IN nº2/2008) | C116: =((5/30)/12)*0.015 -> 0.0002083333333 | D116: =D46*C116 -> 0.2399125
A117: D | B117: Ausências legais | C117: =(2.96/30)*(1/12) -> 0.008222222222 | D117: =D46*C117 -> 9.468546667
A118: E | B118: Ausência por acidente de trabalho | C118: =((15/30)/12)*0.0078 -> 0.000325 | D118: =D46*C118 -> 0.3742635
A119: F | B119: Outros | C119: 0 | D119: =SUM(D114:D118) -> 131.9674122
A120: Subtotal | C120: =SUM(C114:C119) -> 0.1145968254 | D120: =SUM(D114:D119) -> 263.9348244
A121: G | B121: Incidência do submódulo 4.1 sobre o Custo de reposição | C121: =C81*C120 -> 0.04217163175 | D121: =D120*C121 -> 11.13056222
A122: Total | C122: =SUM(C120:C121) -> 0.1567684571 | D122: =SUM(D120:D121) -> 275.0653866
A124: Quadro – resumo – Módulo 4 – Encargos sociais e trabalhistas
A126: 4 | B126: Encargos Sociais e Trabalhistas | D126: Valor (R$)
A127: 4.1 | B127: 13º salário+Adicional de Férias | D127: =D90 -> 280.1916871
A128: 4.2 | B128: Encargos Previdenciários e FGTS | D128: =D81 -> 423.78144
A129: 4.3 | B129: Afastamento Maternidade | D129: =D98 -> 0
A130: 4.4 | B130: Custo de Rescisão | D130: =D109 -> 101.7869408
A131: 4.5 | B131: Custo de Reposição do Profissional Ausente | D131: =D122 -> 275.0653866
A132: 4.6 | B132: Outros | D132: 0
A133: Total | D133: =SUM(D127:D132) -> 1080.825454
A135: Módulo 5: Custos indiretos, tributos e lucro
A137: 5 | B137: Custos Indiretos, Tributos e Lucro | C137: % | D137: Valor (R$)
A138: A | B138: Custos Indiretos (Portaria nº 7 da IN nº2/2008) | C138: 0.03 | D138: =D156*C138 -> 84.62851963
A139: B | B139: Tributos
B140: B.1 Tributos Federais
B141: B.1.1 PIS (depende do regime de tributação) | C141: 0.0165 | D141: =((D156+D138+D146)*C141)/(1-C141) -> 52.05625013
B142: B.1.2 COFINS (depende do regime de tributação) | C142: 0.076 | D142: =((D156+D138+D146)*C142)/(1-C142) -> 255.2142511
B143: B.2 Tributos Estaduais (ISS) | C143: 0.05 | D143: =((D156+D138+D146)*C143)/(1-C143) -> 163.3088421
B144: B.3 Tributos Municipais | D144: 0
B145: B.4 Outros Tributos | D145: 0
A146: C | B146: Lucro | C146: 0.0679 | D146: =(D156+D138)*C146 -> 197.2888259
A147: Total | D147: =SUM(D138:D146) -> 752.4966889
A149: Anexo III –B – Quadro-resumo do custo por empregado
A151: Mão-de-obra vinculada à execução contratual (valor por empregado) | D151: Valor (R$)
A152: A | B152: Módulo 1- Composição da Remuneração | D152: =D46 -> 1151.58
A153: B | B153: Módulo 2- Benefícios Mensais e Diários | D153: =D59 -> 550.9052
A154: C | B154: Módulo 3- Insumos Diversos (uniformes, materiais, equipamentos e outros) | D154: =D67 -> 37.64
A155: D | B155: Módulo 4- Encargos Sociais e Trabalhistas | D155: =D133 -> 1080.825454
A156: Subtotal (A+B+C+D) | D156: =SUM(D152:D155) -> 2820.950654
A157: E | B157: Módulo 5 – Custos indiretos, tributos e lucro | D157: =D147 -> 752.4966889
A158: Valor total por empregado | D158: =SUM(D156:D157) -> 3573.447343
A160: Anexo III –C – Quadro-resumo – Valor Mensal dos Serviços
A162: Tipo de serviço | C162: Valor proposto por empregado (B) | D162: Qtde de empregados por posto | E162: Valor proposto por posto | F162: Qtde e postos | G162: Valor total dos serviços
A163: (A) | D163: (C) | E163: (D)=(BXC) | F163: (E) | G163: (F)=(DxE)
A164: I | B164: Serviço 1 | C164: =D158 -> 3573.447343 | D164: 1 | E164: =C164*D164 -> 3573.447343 | F164: 1 | G164: =E164*F164 -> 3573.447343
A165: II | B165: Serviço 2 (indicar) | C165: R$ | E165: R$ | G165: R$
A167: Valor mensal dos serviços (I+II) | G167: =SUM(G164:G166) -> 3573.447343
A169: Anexo III –D – Quadro-demonstrativo – Valor Global da proposta
A171: Valor global da proposta
B172: Descrição | C172: Valor (R$)
A173: A | B173: Valor proposto por unidade de medida | C173: =E164 -> 3573.447343
A174: B | B174: Valor mensal do serviço | C174: =E164 -> 3573.447343
A175: C | B175: Valor global da proposta (valor mensal do serviço x nº meses do contrato) | C175: =C174*12 -> 42881.36812
